bitfinex-derivatives/quotes_ETHF0:USTF0_20241004
["timestamp","ask_amount","ask_price","bid_price","bid_amount"]
[1728046600263,1.04497,2393.0,2392.4,1.1339]
[1728046600462,1.04497,2393.0,2392.3,3.2078]
[1728046600463,3.2078,2392.9,2392.3,3.2078]
[1728046600666,3.2078,2392.9,2392.0,1.1339]
[1728046600667,0.41808,2392.5,2392.0,4.75985]
[1728046601060,6.14836,2392.8,2392.0,4.3417]
[1728046601061,0.41809,2392.4,2392.0,4.3417]
[1728046601261,6.14836,2392.8,2392.0,4.75986]
[1728046601458,4.01,2392.5,2392.0,4.3417]
[1728046601660,0.41814,2392.1,2392.0,3.2078]
[1728046601860,5.05519,2392.5,2392.0,3.2078]
[1728046601861,0.41809,2392.4,2392.0,3.2078]
[1728046602064,5.05519,2392.5,2392.0,3.2078]
[1728046602266,0.41814,2392.2,2392.0,3.2078]
[1728046602470,0.41814,2392.1,2392.0,3.2078]
[1728046602672,1.04504,2392.9,2392.0,3.2078]
[1728046602673,1.1268,2393.3,2392.1,4.18]
[1728046602966,1.1268,2393.3,2392.5,3.2078]
[1728046602967,2.2201,2393.3,2392.5,3.2078]
[1728046603172,0.41795,2393.2,2392.5,3.2078]
[1728046603375,6.2301,2393.3,2392.5,3.2078]
[1728046603871,2.2201,2393.3,2392.6,0.41805]
[1728046604171,2.63804,2393.3,2392.5,3.62586]
[1728046604368,2.63804,2393.3,2392.5,3.2078]
[1728046604369,0.41795,2393.2,2392.5,3.2078]
[1728046604562,0.41797,2393.2,2392.5,3.2078]
[1728046605067,0.41798,2393.1,2392.5,3.2078]
[1728046605367,6.2301,2393.3,2392.5,3.2078]
[1728046605673,6.64804,2393.3,2392.5,3.2078]
[1728046606065,6.2301,2393.3,2392.5,3.2078]
[1728046606268,0.41796,2393.2,2392.5,3.2078]
[1728046606471,0.41795,2393.2,2392.5,3.2078]
[1728046606771,6.2301,2393.3,2392.5,3.2078]
[1728046606962,0.41796,2393.2,2392.5,3.2078]
[1728046607161,6.64804,2393.3,2392.5,3.62586]
[1728046607879,6.64804,2393.3,2392.6,0.41805]
[1728046608374,6.64804,2393.3,2392.5,3.2078]
[1728046608375,4.01,2393.3,2392.5,3.2078]
[1728046608576,41.84451,2394.1,2392.1,2.2446]
[1728046608577,3.2078,2394.2,2393.2,3.2078]
[1728046608763,0.4178,2394.1,2393.3,0.41792]
[1728046609173,3.62558,2394.2,2393.4,0.4179]
[1728046609469,3.62558,2394.2,2393.3,0.41792]
[1728046609470,0.4178,2394.1,2393.3,0.41792]
[1728046609866,0.4178,2394.1,2393.3,0.41793]
[1728046610166,0.4178,2394.1,2393.3,0.41792]
[1728046610374,3.62558,2394.2,2393.5,0.41789]
[1728046610569,3.2078,2394.2,2393.5,3.2078]
[1728046610775,3.2078,2394.2,2393.5,3.62569]
[1728046611070,3.2078,2394.2,2393.5,3.2078]
[1728046611275,0.41784,2393.9,2393.2,3.62574]
[1728046611470,4.01,2394.0,2393.2,3.2078]
[1728046611666,1.53743,2393.9,2393.2,3.62574]
[1728046612074,1.53743,2393.9,2393.0,0.41798]
[1728046612075,4.42787,2393.7,2393.0,0.41798]
[1728046612275,0.41788,2393.6,2392.9,4.69559]
[1728046612467,4.42787,2393.7,2393.0,0.41797]
[1728046612672,4.01,2393.7,2392.9,4.2776]
[1728046612974,4.42787,2393.7,2393.0,0.41797]
[1728046613161,0.41789,2393.6,2392.9,4.69559]
[1728046613368,0.41789,2393.6,2393.0,0.41798]
[1728046613568,4.01,2393.7,2392.9,4.2776]
[1728046613767,0.41789,2393.6,2392.9,4.69559]
[1728046613968,0.41789,2393.6,2392.9,4.2776]
[1728046614177,4.01,2393.7,2393.0,0.41799]
[1728046614377,4.01,2393.7,2393.1,0.41796]
[1728046614564,4.01,2393.7,2392.9,4.2776]
[1728046614971,4.42786,2393.7,2393.1,0.41796]
[1728046615272,0.41791,2393.5,2392.9,4.2776]
[1728046615775,0.41791,2393.5,2392.9,4.6956]
[1728046616280,0.41789,2393.6,2393.0,0.41798]
[1728046616572,4.01,2393.2,2392.9,3.2078]
[1728046616887,4.42791,2393.5,2392.9,3.6258]
[1728046617070,0.41792,2393.4,2392.9,3.2078]
[1728046617471,4.42791,2393.5,2392.9,3.62579]
[1728046617672,0.41793,2393.4,2392.9,3.2078]
[1728046617868,1.0464,2393.8,2392.9,3.2078]
[1728046618082,0.41792,2393.4,2392.9,3.62579]
[1728046618271,4.01,2393.6,2392.9,3.2078]
[1728046618272,0.41794,2393.3,2392.9,3.2078]
[1728046618473,4.42794,2393.3,2392.9,3.2078]
[1728046619076,4.01,2393.3,2392.9,3.2078]
[1728046619276,4.42794,2393.3,2392.9,3.2078]
[1728046619476,4.01,2393.3,2392.9,3.2078]
[1728046619979,0.41796,2393.2,2392.9,3.2078]
[1728046620278,4.01,2393.3,2392.9,3.2078]
[1728046620478,3.2078,2393.7,2392.9,3.2078]
[1728046620679,0.41788,2393.6,2393.0,1.55088]
[1728046620874,1.0464,2393.8,2393.0,1.1329]
[1728046621072,1.0464,2393.8,2393.3,0.41793]
[1728046621272,1.0464,2393.8,2393.4,0.41791]
[1728046621477,1.0464,2393.8,2393.2,3.2078]
[1728046621682,1.0464,2393.8,2393.5,0.41789]
[1728046621983,1.1196,2393.9,2393.4,0.41791]
[1728046621984,1.53743,2393.9,2393.4,0.41791]
[1728046622183,0.41785,2393.8,2393.5,1.1046]
[1728046622383,1.53743,2393.9,2393.5,1.1046]
[1728046622584,1.1196,2393.9,2393.5,1.1046]
[1728046622781,1.1196,2393.9,2393.5,1.52249]
[1728046622976,1.53743,2393.9,2393.5,1.1046]
[1728046623879,3.2078,2394.1,2393.5,1.1046]
[1728046624182,3.2078,2394.7,2393.8,3.2078]
[1728046624386,0.41774,2394.5,2393.8,3.2078]
[1728046624582,0.41774,2394.5,2394.0,0.4178]
[1728046624783,7.2178,2394.7,2393.8,3.2078]
[1728046625086,21.13213,2394.8,2393.5,4.3124]
[1728046625087,7.2178,2394.4,2393.5,4.3124]
[1728046625288,0.4178,2394.1,2393.6,0.41787]
[1728046625785,1.56387,2394.3,2393.6,0.41788]
[1728046625981,4.01,2393.7,2393.2,3.2078]
[1728046626182,7.63562,2394.0,2393.2,3.2078]
[1728046626383,0.4178,2394.1,2393.7,0.41786]
[1728046626584,6.2137,2394.3,2393.5,3.2078]
[1728046626585,0.41779,2394.2,2393.5,3.2078]
[1728046626787,1.1461,2394.3,2394.0,0.4178]
[1728046627087,3.2078,2394.4,2393.6,1.043]
[1728046627088,3.2078,2394.4,2394.3,0.41776]
[1728046627288,3.2078,2394.4,2393.8,7.2178]
[1728046627587,0.41773,2394.5,2394.1,3.62559]
[1728046627784,25.38414,2394.8,2394.1,3.2078]
[1728046627982,25.38414,2394.8,2394.1,3.62559]
[1728046627983,0.41773,2394.5,2394.1,3.62559]
[1728046628183,0.41772,2394.6,2394.2,0.41777]
[1728046628385,0.41773,2394.5,2394.1,3.62558]
[1728046628783,0.41773,2394.5,2394.1,3.62559]
[1728046629085,4.01,2394.7,2394.1,3.62558]
[1728046629286,4.01,2394.7,2394.1,3.2078]
[1728046629682,0.41773,2394.5,2394.1,3.62558]
[1728046629884,0.41775,2394.4,2394.1,3.2078]
[1728046630076,0.41775,2394.4,2393.7,2.174]
[1728046630077,0.41778,2394.2,2393.8,0.41784]
[1728046630987,0.41781,2394.0,2393.7,1.0396]
[1728046631184,5.0484,2394.4,2393.6,1.043]
[1728046631185,0.41784,2393.9,2393.6,1.043]
[1728046631381,4.01,2394.1,2393.6,1.043]
[1728046631382,0.41782,2394.0,2393.6,1.043]
[1728046631582,5.5732,2394.1,2393.7,0.41785]
[1728046631782,5.1554,2394.1,2393.7,0.41786]
[1728046631980,0.41782,2394.0,2393.6,1.46087]
[1728046632292,5.1554,2394.1,2393.6,1.043]
[1728046632593,5.5732,2394.1,2393.7,0.41786]
[1728046632791,0.41782,2394.0,2393.6,1.46086]
[1728046632988,0.41785,2393.8,2393.6,1.043]
[1728046633190,5.1554,2394.1,2393.4,3.2078]
[1728046633389,0.41789,2393.6,2393.4,3.2078]
[1728046633689,0.41787,2393.7,2393.4,3.2078]
[1728046633886,5.1554,2394.1,2393.4,3.2078]
[1728046634381,4.2524,2393.9,2393.4,3.2078]
[1728046634587,0.4179,2393.5,2393.4,3.2078]
[1728046635183,0.4179,2393.5,2393.0,1.0675]
[1728046635492,2.17164,2393.8,2393.0,1.0675]
[1728046635493,0.41793,2393.4,2393.0,1.48548]
[1728046635690,0.41789,2393.6,2393.2,0.41794]
[1728046635883,0.41787,2393.7,2393.0,1.0675]
[1728046636089,0.41787,2393.7,2393.4,0.41791]
[1728046636698,1.127,2393.8,2393.0,1.0675]
[1728046636995,0.41794,2393.3,2393.0,1.48548]
[1728046637187,8.26253,2393.6,2393.0,1.0675]
[1728046637386,4.01,2393.1,2392.6,3.2078]
[1728046637587,4.01,2392.8,2392.4,0.41809]
[1728046637781,1.1074,2393.0,2392.3,3.2078]
[1728046637782,1.52539,2393.0,2392.5,0.41806]
[1728046637993,1.1074,2393.0,2392.6,0.41805]
[1728046638195,1.1074,2393.0,2392.5,0.41807]
[1728046638392,0.41801,2392.9,2392.4,1.49538]
[1728046638693,1.52539,2393.0,2392.5,0.41806]
[1728046638889,1.52539,2393.0,2392.4,1.0773]
[1728046638890,1.1074,2393.0,2392.4,1.0773]
[1728046639090,1.1074,2393.0,2392.7,0.41803]
[1728046639403,5.0837,2393.5,2392.6,3.2078]
[1728046639589,6.1911,2393.5,2392.7,1.0398]
[1728046639798,2.599,2393.5,2393.1,0.41796]
[1728046640022,2.599,2393.5,2392.7,1.0398]
[1728046640023,2.1811,2393.5,2392.9,3.2078]
[1728046640198,0.41793,2393.4,2392.9,3.2078]
[1728046640387,0.41794,2393.3,2392.9,3.2078]
[1728046640588,4.01,2393.8,2392.9,3.2078]
[1728046640789,1.1184,2393.8,2393.3,0.41793]
[1728046640996,0.4179,2393.5,2393.2,0.41794]
[1728046641495,0.41788,2393.6,2393.0,1.1042]
[1728046641697,1.1184,2393.8,2393.2,3.2078]
[1728046641898,1.53626,2393.8,2393.5,0.41789]
[1728046642301,1.1184,2393.8,2393.3,0.41792]
[1728046642598,1.1184,2393.8,2393.2,3.2078]
[1728046642900,0.41792,2393.4,2393.2,0.41794]
[1728046643302,0.41792,2393.4,2393.1,0.41795]
[1728046643494,2.12853,2393.6,2393.1,0.41797]
[1728046643693,0.41796,2393.2,2393.0,1.1042]
[1728046644494,1.0838,2393.6,2393.0,1.1042]
[1728046644794,1.04475,2393.5,2393.0,1.52218]
[1728046644999,0.4179,2393.5,2393.0,1.1042]
[1728046645290,5.0938,2393.6,2393.0,1.1042]
[1728046645497,1.0838,2393.6,2393.1,3.2078]
[1728046645693,1.50169,2393.6,2393.3,0.41792]
[1728046646493,1.0838,2393.6,2393.4,0.41791]
[1728046646687,1.0838,2393.6,2393.1,3.2078]
[1728046646904,0.41791,2393.5,2393.2,0.41794]
[1728046647099,0.41791,2393.5,2393.3,0.41793]
[1728046647406,1.0838,2393.6,2393.3,0.41793]
[1728046647696,1.0838,2393.6,2392.4,0.17301634]
[1728046647697,4.01,2393.4,2392.4,0.17301634]
[1728046647900,0.41804,2392.8,2392.4,1.0793]
[1728046648097,0.41804,2392.8,2392.6,0.41805]
[1728046648289,0.41794,2393.3,2393.1,0.41797]
[1728046648603,4.3008,2393.5,2392.6,4.25292]
[1728046648604,1.093,2393.5,2392.7,1.1002]
[1728046648799,0.41795,2393.2,2393.0,0.41797]
[1728046648998,0.41798,2393.1,2392.8,0.41802]
[1728046649804,0.41799,2393.0,2392.8,0.41801]
[1728046650006,0.41801,2392.9,2392.7,1.51823]
[1728046650198,4.01,2393.4,2392.6,3.2078]
[1728046650501,0.41799,2393.0,2392.8,0.41802]
[1728046650898,2.1901,2393.3,2392.6,3.2078]
[1728046651301,0.418,2393.0,2392.6,3.2078]
[1728046651601,3.23496,2393.3,2392.7,0.41802]
[1728046651602,0.41801,2392.9,2392.7,0.41802]
[1728046651798,1.04488,2393.2,2392.6,3.2078]
[1728046651799,0.418,2393.0,2392.8,0.41801]
[1728046652000,0.41799,2393.0,2392.8,0.41802]
[1728046652201,0.418,2392.9,2392.7,0.41802]
[1728046653503,0.418,2392.9,2392.6,3.2078]
[1728046653704,0.418,2392.9,2392.7,0.41803]
[1728046654507,1.04493,2393.1,2392.6,3.2078]
[1728046654804,0.41799,2393.0,2392.9,0.418]
[1728046655000,0.41799,2393.0,2392.8,0.41801]
[1728046655306,0.41799,2393.0,2392.6,3.2078]
[1728046655505,0.41799,2393.0,2392.8,0.41801]
[1728046655808,3.26,2393.0,2392.6,3.2078]
[1728046656097,0.418,2392.9,2392.6,3.2078]
[1728046656300,0.41807,2392.6,2392.4,1.49738]
[1728046656608,3.26,2392.5,2392.4,1.49738]
[1728046657102,3.67805,2392.7,2392.5,0.41807]
[1728046657503,3.67804,2392.7,2392.5,0.41806]
[1728046657798,0.41805,2392.6,2392.4,1.49738]
[1728046657998,0.41806,2392.6,2392.4,1.0793]
[1728046658192,3.26,2392.7,2392.5,0.41806]
[1728046658193,3.67804,2392.7,2392.5,0.41806]
[1728046658393,3.67804,2392.7,2392.4,1.0793]
[1728046658394,0.41806,2392.6,2392.4,1.49738]
[1728046658600,3.26,2392.5,2392.4,1.49738]
[1728046658793,3.67807,2392.5,2392.4,1.0793]
[1728046658992,3.26,2392.5,2392.4,1.49739]
[1728046659497,3.26,2392.5,2392.4,1.0793]
[1728046659905,3.67807,2392.5,2392.4,1.0793]
[1728046660301,3.26,2392.5,2392.0,3.2078]
[1728046660508,3.26,2392.3,2392.0,3.2078]
[1728046660802,3.67814,2392.1,2392.0,3.2078]
[1728046661207,3.2078,2392.6,2392.0,3.2078]
[1728046661408,3.26,2392.5,2392.0,3.2078]
[1728046661597,3.26,2392.5,2392.1,0.41813]
[1728046661598,0.4181,2392.4,2392.1,0.41813]
[1728046661916,3.26,2392.5,2392.3,0.41809]
[1728046662203,3.26,2392.5,2392.4,0.41809]
[1728046662709,3.26,2392.7,2392.6,0.41805]
[1728046662911,6.4678,2392.9,2392.8,0.41802]
[1728046663104,1.1232,2393.0,2392.6,3.2078]
[1728046663305,4.80119,2393.0,2392.8,0.41802]
[1728046663698,4.3832,2393.0,2392.8,0.41802]
[1728046664212,4.3832,2393.0,2392.7,0.41804]
[1728046664413,4.3832,2393.0,2392.9,0.418]
[1728046666509,4.3832,2393.0,2392.6,3.2078]
[1728046666709,0.41804,2392.7,2392.4,0.41808]
[1728046666911,3.26,2392.6,2392.2,3.2078]
[1728046667110,3.26,2392.3,2392.2,3.62592]
[1728046667416,3.26,2392.3,2392.2,0.41812]
[1728046667607,4.3635,2392.5,2392.1,1.0675]
[1728046667807,3.26,2392.5,2392.4,0.41809]
[1728046668011,3.26,2392.7,2392.6,0.41805]
[1728046668213,1.1035,2392.9,2392.8,0.41802]
[1728046668514,0.41802,2392.9,2392.3,1.04526]
[1728046668702,3.26,2392.8,2392.7,0.41803]
[1728046668907,0.41805,2392.7,2392.4,0.41807]
[1728046669103,3.2717,2393.0,2392.2,3.2078]
[1728046669104,3.26,2392.6,2392.2,3.2078]
[1728046669306,3.26,2392.6,2392.5,0.41807]
[1728046669605,3.26,2392.8,2392.2,4.25309]
[1728046669806,5.4867,2393.0,2392.9,0.418]
[1728046670205,2.2267,2393.0,2392.9,0.418]
[1728046670709,2.2267,2393.0,2392.8,3.2078]
[1728046670917,2.2267,2393.0,2392.9,0.418]
[1728046671103,2.2267,2393.0,2392.8,3.2078]
[1728046671308,0.418,2392.9,2392.7,0.41802]
[1728046671511,2.64469,2393.0,2392.8,0.41801]
[1728046671705,2.2267,2393.0,2392.9,0.418]
[1728046674115,2.2267,2393.0,2392.6,1.0699]
[1728046674320,0.41803,2392.8,2392.6,0.41805]
[1728046674509,0.41805,2392.7,2392.5,3.62587]
[1728046674907,0.41805,2392.6,2392.5,3.2078]
[1728046675112,3.26,2392.6,2392.1,4.2821]
[1728046675312,0.41808,2392.5,2392.3,0.4181]
[1728046675818,0.41808,2392.5,2392.1,5.3682]
[1728046676010,3.67807,2392.6,2392.3,0.41809]
[1728046676423,3.67807,2392.6,2392.4,0.41809]
[1728046676623,4.81871,2392.9,2392.2,1.46342]
[1728046676923,0.41803,2392.8,2392.6,0.41804]
[1728046677322,2.2267,2393.0,2392.8,0.41802]
[1728046677616,2.2267,2393.0,2392.2,0.41812]
[1728046677617,2.2267,2393.0,2392.9,0.418]
[1728046678618,2.6447,2393.0,2392.8,0.41801]
[1728046678820,2.64469,2393.0,2392.8,0.41801]
[1728046679315,2.2267,2393.0,2392.8,0.41802]
[1728046679523,2.2267,2393.0,2392.7,4.73423]
[1728046679726,2.6447,2393.0,2392.7,4.73422]
[1728046680020,2.6447,2393.0,2392.8,0.41801]
[1728046680320,2.6447,2393.0,2392.7,4.3162]
[1728046680321,2.2267,2393.0,2392.9,0.418]
[1728046681834,1.1404,2393.5,2392.7,4.3162]
[1728046682118,0.41805,2392.7,2392.5,0.41807]
[1728046682310,0.41805,2392.7,2392.3,3.2078]
[1728046682311,5.06499,2393.0,2392.3,3.2078]
[1728046682514,0.41797,2393.1,2392.9,0.41799]
[1728046682815,7.27787,2393.3,2392.9,0.41799]
[1728046682816,7.27787,2393.3,2392.9,0.418]
[1728046683014,0.41795,2393.2,2392.6,3.2078]
[1728046683216,2.213,2393.3,2392.7,2.2895]
[1728046683415,0.41798,2393.1,2392.9,0.41799]
[1728046683620,2.213,2393.3,2392.7,2.2895]
[1728046683921,0.41797,2393.1,2392.9,0.41799]
[1728046684115,0.41801,2392.9,2392.7,1.56653]
[1728046684314,1.04488,2393.2,2392.7,1.1485]
[1728046684520,0.418,2392.9,2392.7,0.41803]
[1728046684919,1.04488,2393.2,2392.6,3.2078]
[1728046685122,0.418,2392.9,2392.7,0.41803]
[1728046685424,0.418,2392.9,2392.6,3.2078]
[1728046685425,0.41804,2392.7,2392.6,3.2078]
[1728046685820,4.59724,2392.7,2392.6,3.2078]
[1728046686619,5.66594,2392.7,2392.6,3.2078]
[1728046686821,1.0687,2392.7,2392.6,3.2078]
[1728046687023,1.071,2392.8,2392.7,0.41804]
[1728046687421,1.071,2392.8,2392.6,3.2078]
[1728046687626,1.48903,2392.8,2392.6,3.62585]
[1728046687821,1.48903,2392.8,2392.6,3.62584]
[1728046688028,1.48902,2392.8,2392.6,3.62584]
[1728046688329,0.41804,2392.7,2392.6,3.2078]
[1728046689034,1.071,2392.8,2392.6,3.2078]
[1728046689231,3.2078,2392.7,2392.2,3.2078]
[1728046689452,3.2078,2392.7,2391.9,3.2078]
[1728046689453,0.41814,2392.1,2391.9,3.2078]
[1728046689621,0.41814,2392.1,2391.9,3.62597]
[1728046690021,2.2098,2392.3,2391.9,3.2078]
[1728046690230,1.1292,2392.6,2392.2,3.62592]
[1728046690435,0.41803,2392.8,2392.5,0.41806]
[1728046690735,1.0613,2392.9,2392.3,1.1359]
[1728046691123,0.41803,2392.8,2392.5,0.41807]
[1728046691333,0.41804,2392.7,2392.3,1.1359]
[1728046691632,0.41806,2392.6,2392.3,1.554]
[1728046691826,1.56655,2392.7,2392.3,1.554]
[1728046692022,1.1485,2392.7,2392.1,1.138]
[1728046692222,1.56655,2392.7,2392.3,0.4181]
[1728046692436,1.1485,2392.7,2392.3,0.4181]
[1728046692732,1.1485,2392.7,2392.2,3.2078]
[1728046693036,0.41795,2393.3,2392.9,0.41799]
[1728046693435,0.41795,2393.2,2392.9,0.41799]
[1728046693629,0.41795,2393.2,2392.7,1.0796]
[1728046693834,2.2189,2393.4,2392.6,1.1418]
[1728046694030,1.04484,2393.3,2392.7,0.41802]
[1728046694335,2.2189,2393.4,2392.8,0.41801]
[1728046694336,0.41797,2393.2,2392.8,0.41801]
[1728046694534,2.2189,2393.4,2392.6,1.55984]
[1728046694535,0.418,2393.0,2392.6,1.55984]
[1728046694735,0.41796,2393.2,2392.6,1.1418]
[1728046694936,0.41796,2393.2,2392.8,0.41801]
[1728046695137,2.2189,2393.4,2392.8,0.41801]
[1728046695330,0.41793,2393.3,2392.9,0.418]
[1728046695525,0.41796,2393.2,2392.9,0.418]
[1728046695731,0.41794,2393.3,2392.9,0.418]
[1728046695934,0.41794,2393.3,2392.9,0.41799]
[1728046696134,0.41796,2393.2,2392.9,0.41799]
[1728046696533,2.2189,2393.4,2392.9,0.41799]
[1728046696734,0.41795,2393.3,2392.9,0.41799]
[1728046697429,0.41796,2393.2,2392.8,0.41801]
[1728046698033,0.41796,2393.2,2392.9,0.418]
[1728046698235,0.41797,2393.1,2392.8,0.41801]
[1728046698538,0.41796,2393.2,2392.8,0.41801]
[1728046699040,0.41798,2393.1,2392.7,0.41802]
[1728046699230,4.02,2393.2,2392.8,0.41802]
[1728046699632,0.41798,2393.1,2392.8,0.41802]
[1728046699838,0.41798,2393.1,2392.7,0.41803]
[1728046700038,4.43791,2393.5,2393.1,0.41796]
[1728046700431,4.02,2393.5,2393.2,0.41794]
[1728046700735,3.62569,2393.6,2392.6,2.18692]
[1728046700736,4.02,2393.3,2392.6,1.1418]
[1728046700936,0.41802,2392.8,2392.5,3.62587]
[1728046701238,0.41802,2392.8,2392.5,3.2078]
[1728046701239,1.0724,2392.7,2392.5,3.2078]
[1728046701540,4.3324,2392.7,2392.5,3.62587]
[1728046701942,3.26,2392.9,2392.5,3.2078]
[1728046702135,3.26,2392.9,2392.8,0.41802]
[1728046703033,1.0724,2393.0,2392.5,3.2078]
[1728046703234,1.0724,2393.0,2392.9,0.418]
[1728046703435,1.0724,2393.0,2392.5,4.25297]
[1728046703645,3.26,2392.9,2392.8,0.418]
[1728046704340,3.26,2393.1,2393.0,0.41799]
[1728046704550,3.26,2393.1,2392.9,1.1334]
[1728046704739,1.0777,2393.2,2392.9,1.1334]
[1728046704938,3.67793,2393.4,2393.2,0.41794]
[1728046705542,3.26,2393.3,2393.0,1.1508]
[1728046705741,3.26,2393.3,2393.2,0.41795]
[1728046706140,1.0593,2393.6,2393.2,7.3862]
[1728046706344,2.1064,2393.9,2393.7,0.41786]
[1728046706552,3.26,2394.3,2393.7,3.67786]
[1728046706758,3.26,2394.3,2393.7,7.85546]
[1728046707043,3.26,2394.3,2393.7,0.41786]
[1728046707249,17.46933458,2393.8,2393.7,10.59546]
[1728046707437,15.04037458,2393.8,2393.7,10.59546]
[1728046707642,9.84093602,2393.8,2393.7,15.68521744]
[1728046707938,4.11609602,2393.8,2393.7,17.95048653]
[1728046708145,4.11609602,2393.8,2393.7,10.59546]
[1728046708346,3.24079602,2393.8,2393.7,10.59546]
[1728046708545,2.34191602,2393.8,2393.7,10.59546]
[1728046708848,1.39160602,2393.8,2393.7,4.59546]
[1728046709046,1.39160602,2393.8,2393.7,10.59546]
[1728046709251,1.39160602,2393.8,2393.7,0.41786]
[1728046710135,1.39160602,2393.8,2393.7,4.59546]
[1728046711146,1.39160602,2393.8,2393.7,0.41786]
[1728046712239,1.39160602,2393.8,2393.6,1.55128]
[1728046712442,1.39160602,2393.8,2393.7,0.41786]
[1728046712644,1.39160602,2393.8,2393.7,4.59546]
[1728046714351,1.39160602,2393.8,2393.7,0.41786]
[1728046714547,1.39160602,2393.8,2393.7,4.59546]
[1728046715740,1.39160602,2393.8,2393.7,0.41786]
[1728046716247,1.39160602,2393.8,2393.6,1.55127]
[1728046716551,1.39160602,2393.8,2393.7,0.41786]
[1728046716846,1.39160602,2393.8,2393.6,1.1334]
[1728046717051,1.39160602,2393.8,2393.5,3.2078]
[1728046717252,5.123,2393.7,2393.2,3.2078]
[1728046717443,4.01,2393.4,2392.8,3.2078]
[1728046717647,4.01,2393.4,2392.8,4.2797]
[1728046717948,1.0458,2393.3,2392.9,0.418]
[1728046718445,1.0458,2393.3,2392.8,4.2797]
[1728046718643,1.1142,2393.6,2392.8,4.2797]
[1728046718839,1.1142,2393.6,2393.1,3.2078]
[1728046719438,1.1142,2393.6,2393.4,0.4179]
[1728046720354,1.1142,2393.6,2393.5,0.4179]
[1728046720849,1.1142,2393.6,2393.3,0.41792]
[1728046721043,1.1142,2393.6,2393.5,0.4179]
[1728046721445,1.1142,2393.6,2393.5,5.7209]
[1728046721645,1.39160602,2393.8,2393.7,0.41786]
[1728046721841,1.39160602,2393.8,2393.7,3.62566]
[1728046726358,5.56920602,2393.8,2393.4,3.2078]
[1728046726558,5.56920602,2393.8,2393.2,1.0981]
[1728046726559,1.39160602,2393.8,2393.2,1.0981]
[1728046726760,1.39160602,2393.8,2393.7,0.41786]
[1728046727061,4.01,2394.4,2393.7,0.41786]
[1728046727062,4.01,2395.1,2393.7,4.01]
[1728046727262,3.2078,2394.7,2394.4,0.41774]
[1728046727451,3.2078,2394.7,2394.1,3.2078]
[1728046727648,4.01,2394.9,2394.1,3.2078]
[1728046727850,3.2078,2394.5,2394.3,0.41775]
[1728046728058,3.2078,2394.5,2394.1,3.2078]
[1728046728249,2.2078,2394.4,2394.1,3.2078]
[1728046728455,2.2078,2394.4,2394.3,0.41776]
[1728046728760,2.2078,2394.4,2394.2,0.41777]
[1728046728964,2.2078,2394.4,2393.8,4.3059]
[1728046729262,4.01,2394.3,2393.9,0.41782]
[1728046729463,4.01,2394.3,2393.5,6.48094]
[1728046729658,4.3121,2394.2,2393.5,6.48094]
[1728046730349,4.3121,2394.2,2394.1,0.41779]
[1728046730555,4.3121,2394.2,2393.9,0.41782]
[1728046730854,4.3121,2394.2,2394.1,0.41779]
[1728046731252,4.3121,2394.2,2393.9,0.41781]
[1728046731451,4.3121,2394.2,2393.5,6.48094]
[1728046731452,4.3121,2394.2,2394.0,0.4178]
[1728046731663,4.3121,2394.2,2393.6,1.04471]
[1728046731862,4.3121,2394.2,2394.0,0.4178]
[1728046733252,4.3121,2394.2,2393.9,0.41782]
[1728046733952,4.3121,2394.2,2393.5,6.48094]
[1728046733953,4.3121,2394.2,2393.6,1.04471]
[1728046734153,1.0521,2394.2,2394.0,0.4178]
[1728046734954,1.0521,2394.2,2393.6,3.26]
[1728046735163,1.0521,2394.2,2393.9,0.41782]
[1728046735455,1.0521,2394.2,2393.6,3.26]
[1728046735658,1.0521,2394.2,2393.1,0.17593022]
[1728046735659,3.26,2393.7,2393.2,0.41795]
[1728046735858,2.1624,2393.6,2393.4,0.4179]
[1728046736061,3.2852,2393.6,2393.3,0.41793]
[1728046736363,3.2852,2393.6,2393.0,0.41798]
[1728046736364,3.26,2393.5,2393.0,0.41798]
[1728046736557,3.26,2393.2,2392.8,5.25297515]
[1728046736757,3.26,2393.2,2393.1,0.41797]
[1728046737153,3.26,2393.2,2392.7,2.1933]
[1728046737362,6.493,2393.6,2393.4,0.41791]
[1728046737666,6.493,2393.6,2393.1,3.2078]
[1728046737860,6.493,2393.6,2393.4,0.41791]
[1728046738464,4.1776,2393.5,2393.2,0.41793]
[1728046738663,9.753,2393.6,2393.1,0.41796]
[1728046738862,9.753,2393.6,2392.8,6.4678]
[1728046739069,9.753,2393.6,2393.1,0.41796]
[1728046739260,9.753,2393.6,2392.8,6.4678]
[1728046739668,6.493,2393.6,2393.3,0.41793]
[1728046740166,6.493,2393.6,2393.4,0.41791]
[1728046740461,6.493,2393.6,2393.5,0.4179]
[1728046740861,3.2078,2394.0,2393.5,4.1776]
[1728046741055,2.2159,2394.0,2393.7,0.41786]
[1728046741259,1.0402,2393.9,2393.8,0.41785]
[1728046741864,1.0402,2393.9,2393.4,4.25256]
[1728046742368,1.0402,2393.9,2393.4,3.2078]
[1728046742570,1.0402,2393.9,2393.6,0.41787]
[1728046742865,1.0402,2393.9,2393.4,3.2078]
[1728046743368,1.0402,2393.9,2393.4,4.25257]